fUST/lending_fUST_20251002
["ID","MTS","AMOUNT","RATE_DAILY","PERIOD"]
[388839027,1759411840461,-500.0,0.00021411,2]
[388839028,1759411840471,-500.0,0.00021411,2]
[388839029,1759411840483,-1428.89306459,0.00021485,2]
[388839030,1759411840494,-150.0,0.00021594,2]
[388839031,1759411840505,-168.0,0.00021626,2]
[388839032,1759411840516,-260.87028667,0.00021766,2]
[388839033,1759411840528,-159.32761375,0.00021766,2]
[388839034,1759411840544,-32839.9343224,0.00021767,2]
[388839035,1759411840558,-4234.01859906,0.00021767,2]
[388839036,1759411840572,-532.37718588,0.00021767,2]
[388839037,1759411840585,-5513.09481521,0.00021767,2]
[388839038,1759411840599,-416.31000001,0.00021767,2]
[388839039,1759411840613,-1606.97244131,0.00021767,2]
[388839059,1759411843115,-173.61874214,0.00021766,2]
[388839060,1759411843126,-265.74035785,0.00021767,2]
[388839069,1759411845862,-324591.55227828,0.00021767,2]
[388839070,1759411845871,-1428.89306459,0.00021875,2]
[388839072,1759411845880,-361.17482983,0.00021907,2]
[388839073,1759411845892,-1444.69931931,0.00021907,2]
[388839074,1759411845902,-3250.57346845,0.00021907,2]
[388839075,1759411845911,-5773.01847997,0.00021907,2]
[388839076,1759411845920,-500.0,0.00021918,2]
[388839077,1759411845930,-204.60233936,0.00021918,7]
[388839078,1759411845939,-1000.0,0.00021959,2]
[388839079,1759411845948,-168.0,0.00022028,2]
[388839080,1759411845957,-160.0,0.00022064,2]
[388839081,1759411845966,-150.0,0.00022094,2]
[388839082,1759411845976,-1428.89306459,0.00022162,2]
[388839083,1759411845985,-168.0,0.00022167,2]
[388839084,1759411845994,-168.0,0.00022188,2]
[388839085,1759411846003,-5000.0,0.00022278,2]
[388839086,1759411846012,-168.0,0.00022365,2]
[388839087,1759411846021,-168.0,0.00022365,2]
[388839088,1759411846030,-587.0,0.00022384,2]
[388839089,1759411846039,-1428.8930646,0.00022413,2]
[388839090,1759411846049,-1003.43839164,0.00022466,2]
[388839091,1759411846058,-1031.5424077,0.00022478,2]
[388839092,1759411846067,-1500.0,0.00022507,2]
[388839093,1759411846076,-260.0,0.00022612,2]
[388839094,1759411846086,-66.95009807,0.00022657,2]
[388839095,1759411846095,-168.0,0.00022764,2]
[388839096,1759411846104,-512.0416657,0.00022767,2]
[388839097,1759411846116,-150.0,0.00022784,2]
[388839098,1759411846125,-5302.02,0.000228,2]
[388839099,1759411846134,-410.0,0.0002285,2]
[388839100,1759411846144,-150.0,0.00022912,2]
[388839101,1759411846154,-3084.007,0.00022953,2]
[388839102,1759411846163,-150.0,0.00023039,2]
[388839103,1759411846172,-2000.0,0.00023055,2]
[388839104,1759411846182,-360.0,0.0002316,2]
[388839105,1759411846192,-150.0,0.00023167,2]
[388839106,1759411846202,-150.0,0.00023294,2]
[388839107,1759411846211,-324.4507868,0.00023367,2]
[388839108,1759411846221,-593.422031,0.00023367,2]
[388839109,1759411846230,-376.679279,0.00023367,2]
[388839110,1759411846240,-189.1492399,0.00023367,2]
[388839111,1759411846250,-153.0,0.00023367,2]
[388839112,1759411846259,-153.0,0.00023367,2]
[388839113,1759411846268,-393.6962078,0.00023367,2]
[388839114,1759411846277,-153.0,0.00023367,2]
[388839115,1759411846286,-594.1422348,0.00023367,2]
[388839116,1759411846298,-153.0,0.00023367,2]
[388839117,1759411846307,-597.926,0.00023388,3]
[388839118,1759411846316,-1183.0704568,0.00023388,2]
[388839119,1759411846325,-150.0,0.00023421,2]
[388839120,1759411846334,-150.0,0.00023549,2]
[388839121,1759411846343,-150.0,0.00023549,2]
[388839122,1759411846352,-776.17,0.00023593,3]
[388839123,1759411846362,-150.0,0.00023594,2]
[388839124,1759411846371,-500.0,0.00023603,2]
[388839125,1759411846380,-150.0,0.00023676,2]
[388839126,1759411846392,-150.0,0.00023676,2]
[388839127,1759411846401,-258.71,0.00023682,3]
[388839128,1759411846410,-460.0,0.00023707,2]
[388839129,1759411846419,-150.0,0.00023804,2]
[388839130,1759411846428,-150.0,0.00023804,2]
[388839131,1759411846438,-600.0,0.00023856,20]
[388839132,1759411846448,-243.0,0.00023863,11]
[388839133,1759411846459,-150.0,0.00023931,2]
[388839134,1759411846469,-150.0,0.00023931,2]
[388839135,1759411846478,-2754.21,0.0002399,10]
[388839136,1759411846487,-5302.02,0.00024,2]
[388839137,1759411846498,-150.0,0.00024059,2]
[388839138,1759411846507,-150.0,0.00024059,2]
[388839139,1759411846516,-150.0,0.00024094,2]
[388839140,1759411846527,-150.0,0.00024186,2]
[388839141,1759411846538,-150.0,0.00024186,2]
[388839142,1759411846547,-560.0,0.00024255,2]
[388839143,1759411846556,-1031.5424077,0.00024284,2]
[388839144,1759411846565,-150.0,0.00024313,2]
[388839145,1759411846574,-150.0,0.00024313,2]
[388839146,1759411846584,-2000.0,0.000244,2]
[388839147,1759411846593,-2000.0,0.000244,2]
[388839148,1759411846603,-823.0,0.00024403,2]
[388839149,1759411846612,-150.0,0.00024441,2]
[388839150,1759411846622,-150.0,0.00024441,2]
[388839151,1759411846631,-500.0,0.000245,9]
[388839152,1759411846643,-500.0,0.000245,9]
[388839153,1759411846652,-150.0,0.00024568,2]
[388839154,1759411846662,-150.0,0.00024568,2]
[388839155,1759411846671,-150.0,0.00024594,2]
[388839156,1759411846681,-800.0,0.00024647,2]
[388839157,1759411846691,-200.0,0.00024658,15]
[388839158,1759411846700,-280.0,0.00024658,2]
[388839159,1759411846710,-150.0,0.00024696,2]
[388839160,1759411846719,-150.0,0.00024696,2]
[388839161,1759411846729,-150.0,0.00024696,2]
[388839162,1759411846739,-151.17505602,0.00024731,2]
[388839163,1759411846748,-158.31954602,0.00024731,2]
[388839164,1759411846758,-500.0,0.00024731,2]
[388839165,1759411846768,-151.0,0.00024731,2]
[388839166,1759411846778,-500.0,0.00024731,2]
[388839167,1759411846787,-516.0,0.00024731,2]
[388839168,1759411846796,-597.2243712,0.00024748,2]
[388839169,1759411846806,-300.0,0.00024773,2]
[388839170,1759411846815,-500.0,0.00024773,2]
[388839171,1759411846825,-88602.28958553,0.000248,26]
[388839172,1759411846835,-493.34197546,0.000248,14]
[388839173,1759411846844,-250.3,0.000248,2]
[388839174,1759411846854,-2818.38449293,0.000248,2]
[388839175,1759411846863,-1366.746061,0.000248,5]
[388839176,1759411846873,-151.0,0.000248,7]
[388839177,1759411846883,-151.0,0.000248,7]
[388839178,1759411846893,-151.0,0.000248,7]
[388839179,1759411846903,-4487.46,0.000248,2]
[388839180,1759411846912,-176.75575821,0.000248,2]
[388839181,1759411846922,-660.0,0.00024803,2]
[388839182,1759411846931,-1000.0,0.0002482,5]
[388839183,1759411846941,-150.0,0.00024823,2]
[388839184,1759411846951,-150.0,0.00024823,2]
[388839185,1759411846961,-150.0,0.00024823,2]
[388839186,1759411846971,-1000.0,0.0002484,5]
[388839187,1759411846980,-1000.0,0.0002486,5]
[388839188,1759411846990,-325.501132,0.00024873,2]
[388839189,1759411846999,-500.0,0.00024873,2]
[388839190,1759411847009,-500.0,0.00024873,2]
[388839191,1759411847018,-500.0,0.00024873,2]
[388839192,1759411847028,-266.1219387,0.00024873,2]
[388839193,1759411847037,-500.0,0.00024873,2]
[388839194,1759411847047,-500.0,0.00024873,2]
[388839195,1759411847056,-500.0,0.00024873,2]
[388839196,1759411847066,-576.25803123,0.00024873,2]
[388839197,1759411847075,-500.0,0.00024873,2]
[388839198,1759411847084,-1000.0,0.0002488,5]
[388839199,1759411847093,-156.274124,0.00024887,2]
[388839200,1759411847104,-47889.75661476,0.000249,2]
[388839201,1759411847113,-700.91856397,0.000249,2]
[388839202,1759411847122,-700.91856397,0.000249,2]
[388839203,1759411847132,-700.91856397,0.000249,2]
[388839204,1759411847142,-679.89100705,0.000249,2]
[388839205,1759411847151,-560.73485118,0.000249,2]
[388839206,1759411847161,-595.78077937,0.000249,2]
[388839207,1759411847170,-560.73485118,0.000249,2]
[388839208,1759411847179,-595.78077937,0.000249,2]
[388839209,1759411847188,-560.73485118,0.000249,2]
[388839210,1759411847198,-700.91856397,0.000249,2]
[388839211,1759411847207,-153.256626,0.000249,7]
[388839212,1759411847217,-1000.0,0.000249,5]
[388839213,1759411847226,-232.057509,0.000249,7]
[388839214,1759411847236,-232.057509,0.000249,7]
[388839215,1759411847245,-232.057509,0.000249,7]
[388839216,1759411847255,-232.057509,0.000249,7]
[388839217,1759411847264,-265.441213,0.000249,7]
[388839218,1759411847274,-152.470677,0.000249,7]
[388839219,1759411847284,-293.541727,0.000249,7]
[388839220,1759411847294,-151.0,0.000249,7]
[388839221,1759411847303,-151.0,0.000249,7]
[388839222,1759411847312,-686798.683727,0.000249,2]
[388839223,1759411847322,-196.93,0.0002491,7]
[388839224,1759411847331,-1000.0,0.0002492,5]
[388839225,1759411847340,-1000.0,0.0002494,5]
[388839226,1759411847350,-150.0,0.00024951,2]
[388839227,1759411847359,-150.0,0.00024951,2]
[388839228,1759411847368,-150.0,0.00024951,2]
[388839229,1759411847377,-1000.0,0.0002496,5]
[388839230,1759411847386,-1000.0,0.0002498,5]
[388839231,1759411847396,-1161.283257,0.0002498,5]
[388839232,1759411847405,-150.0,0.00024983,2]
[388839233,1759411847414,-800.0,0.00024988,2]
[388839234,1759411847423,-504.922672,0.00024992,2]
[388839235,1759411847432,-1073.10595488,0.00025,2]
[388839236,1759411847441,-17707.42197493,0.00025,2]
[388839237,1759411847451,-2644.27266481,0.00025,2]
[388839238,1759411847465,-209.51244186,0.00025,2]
[388839239,1759411847474,-10364.0,0.00025,2]
[388839240,1759411847484,-361.81605139,0.00025,2]
[388839241,1759411847494,-150.0,0.00025,2]
[388839242,1759411847503,-500.0,0.00025,2]
[388839243,1759411847513,-101180.73658661,0.00025,2]
[388839244,1759411847522,-600.0,0.00025,2]
[388839245,1759411847531,-1500.0,0.00025,2]
[388839246,1759411847540,-1500.0,0.00025,2]
[388839247,1759411847549,-1500.0,0.00025,2]
[388839248,1759411847558,-1500.0,0.00025,2]
[388839249,1759411847727,-1500.0,0.00025,2]
[388839250,1759411847746,-1500.0,0.00025,2]
[388839251,1759411847756,-1500.0,0.00025,2]
[388839252,1759411847765,-1500.0,0.00025,2]
[388839253,1759411847774,-1500.0,0.00025,2]
[388839254,1759411847784,-1904.93,0.00025,2]
[388839255,1759411847793,-1500.0,0.00025,2]
[388839256,1759411847802,-1000.0,0.00025,5]
[388839257,1759411847811,-1000.0,0.00025,5]
[388839258,1759411847820,-883.611,0.00025,2]
[388839259,1759411847830,-1000.0,0.00025,2]
[388839260,1759411847839,-250.0,0.00025,10]
[388839261,1759411847848,-150.0,0.00025,2]
[388839262,1759411847858,-500.0,0.00025005,2]
[388839263,1759411847867,-151.0,0.00025005,2]
[388839264,1759411847876,-596.98855547,0.00025005,2]
[388839265,1759411847885,-516.0,0.00025005,2]
[388839266,1759411847896,-560.73485118,0.00025033,2]
[388839267,1759411847905,-700.91856397,0.00025033,2]
[388839268,1759411847915,-595.78077937,0.00025033,2]
[388839269,1759411847924,-264.64716863,0.0002506,2]
[388839270,1759411847934,-264.64716863,0.0002506,2]
[388839271,1759411847943,-666.66666667,0.0002506,2]
[388839272,1759411847952,-666.66666667,0.0002506,2]
[388839274,1759411847962,-150.0,0.00025078,2]
[388839275,1759411847971,-150.0,0.00025078,2]
[388839276,1759411847980,-150.0,0.00025078,2]
[388839277,1759411847989,-150.0,0.00025094,2]
[388839278,1759411847998,-211.7,0.000251,7]
[388839279,1759411848007,-250.0,0.000251,10]
[388839280,1759411848017,-878.68206114,0.00025188,14]
[388839281,1759411848026,-250.0,0.000252,10]
[388839282,1759411848035,-150.0,0.00025205,2]
[388839283,1759411848045,-150.0,0.00025205,2]
[388839284,1759411848055,-150.0,0.00025205,2]
[388839285,1759411848064,-150.0,0.00025205,2]
[388839286,1759411848073,-264.64716863,0.0002521,4]
[388839287,1759411848083,-264.64716863,0.0002521,4]
[388839288,1759411848092,-264.64716863,0.0002521,4]
[388839289,1759411848102,-666.66666667,0.00025211,4]
[388839290,1759411848111,-666.66666667,0.00025211,4]
[388839291,1759411848121,-666.66666667,0.00025211,4]
[388839292,1759411848130,-666.66666667,0.00025211,4]
[388839293,1759411848140,-700.91856384,0.00025245,3]
[388839294,1759411848149,-700.91856384,0.00025245,3]
[388839295,1759411848159,-700.91856384,0.00025245,3]
[388839296,1759411848168,-500.0,0.00025279,2]
[388839297,1759411848178,-231.97498695,0.00025279,2]
[388839298,1759411848188,-516.0,0.00025279,2]
[388839299,1759411848198,-5302.02,0.000253,2]
[388839300,1759411848208,-250.0,0.000253,10]
[388839301,1759411848218,-600.0,0.00025321,2]
[388839302,1759411848227,-500.0,0.00025321,2]
[388839303,1759411848236,-150.0,0.00025339,2]
[388839304,1759411848245,-760.0,0.00025351,2]
[388839305,1759411848255,-264.64716863,0.00025361,6]
[388839306,1759411848265,-666.66666667,0.00025362,6]
[388839307,1759411848274,-2000.0,0.000254,2]
[388839308,1759411848284,-2000.0,0.000254,2]
[388839309,1759411848294,-250.0,0.000254,10]
[388839310,1759411848304,-1000.0,0.00025421,2]
[388839311,1759411848313,-1000.0,0.00025421,2]
[388839312,1759411848323,-1000.0,0.00025421,2]
[388839313,1759411848332,-1000.0,0.00025421,2]
[388839314,1759411848342,-900.0,0.00025469,3]
[388839315,1759411848351,-3124.67,0.00025479,30]
[388839316,1759411848360,-1000.0,0.000255,2]
[388839317,1759411848369,-250.0,0.000255,10]
[388839318,1759411848379,-666.66666667,0.00025512,8]
[388839319,1759411848388,-666.66666667,0.00025512,8]
[388839320,1759411848400,-666.66666667,0.00025512,8]
[388839321,1759411848409,-666.66666667,0.00025512,8]
[388839322,1759411848419,-457.48637131,0.00025553,2]
[388839323,1759411848428,-516.0,0.00025553,2]
[388839324,1759411848438,-700.91856384,0.0002559,3]
[388839325,1759411848448,-700.91856384,0.0002559,3]
[388839326,1759411848461,-700.91856384,0.0002559,3]
[388839327,1759411848471,-150.0,0.00025594,2]
[388839328,1759411848481,-156.274124,0.000256,3]
[388839329,1759411848491,-250.0,0.000256,10]
[388839330,1759411848501,-264.64716863,0.00025663,10]
[388839331,1759411848510,-264.64716863,0.00025663,10]
[388839332,1759411848519,-264.64716863,0.00025663,10]
[388839333,1759411848529,-666.66666667,0.00025663,10]
[388839334,1759411848538,-666.66666667,0.00025663,10]
[388839335,1759411848548,-666.66666667,0.00025663,10]
[388839336,1759411848558,-150.0,0.00025695,2]
[388839337,1759411848568,-352.612094,0.000257,10]
[388839338,1759411848577,-4487.46,0.000257,2]
[388839339,1759411848586,-234.00747223,0.000257,10]
[388839340,1759411848595,-293.43242757,0.000257,10]
[388839341,1759411848606,-757.78165772,0.00025703,2]
[388839342,1759411848615,-24501.73219398,0.000258,2]
[388839343,1759411848624,-264.64716863,0.00025813,12]
[388839344,1759411848634,-666.66666667,0.00025814,12]
[388839345,1759411848645,-666.66666667,0.00025814,12]
[388839346,1759411848654,-516.0,0.00025827,2]
[388839347,1759411848664,-410.0,0.0002585,2]
[388839348,1759411848673,-900.0,0.00025868,2]
[388839349,1759411848682,-52485.0,0.0002587,7]
[388839350,1759411848692,-293.43242757,0.0002587,7]
[388839351,1759411848701,-234.00747223,0.0002587,7]
[388839352,1759411848711,-160.0,0.0002587,7]
[388839353,1759411848720,-232.057509,0.0002587,7]
[388839354,1759411848730,-232.057509,0.0002587,7]
[388839355,1759411848739,-232.057509,0.0002587,7]
[388839356,1759411848749,-232.057509,0.0002587,7]
[388839357,1759411848758,-151.0,0.0002587,7]
[388839358,1759411848768,-151.0,0.0002587,7]
[388839359,1759411848777,-151.0,0.0002587,7]
[388839360,1759411848787,-151.0,0.0002587,7]
[388839361,1759411848796,-150.0,0.00025873,2]
[388839362,1759411848806,-860.0,0.00025899,2]
[388839363,1759411848816,-700.91856384,0.00025934,4]
[388839364,1759411848825,-700.91856384,0.00025934,4]
[388839365,1759411848835,-700.91856384,0.00025934,4]
[388839366,1759411848844,-264.64716863,0.00025964,14]
[388839367,1759411848853,-666.66666667,0.00025965,14]
[388839368,1759411848862,-1500.0,0.00025968,2]
[388839369,1759411848871,-1001.52749135,0.00025968,2]
[388839370,1759411848880,-1500.0,0.00025968,2]
[388839371,1759411848890,-502.66775775,0.00025968,2]
[388839372,1759411848900,-523.73793522,0.00026,2]
[388839373,1759411848909,-19900.0,0.00026,2]
[388839374,1759411848918,-19458.49388822,0.00026,10]
[388839375,1759411848928,-161.0,0.00026,5]
[388839376,1759411848937,-293.43242757,0.00026,3]
[388839377,1759411848947,-160.0,0.00026,3]
[388839378,1759411848956,-234.00747223,0.00026,3]
[388839379,1759411848966,-150.0,0.00026,2]
[388839380,1759411848976,-382.96434378,0.00026021,8]
[388839381,1759411848985,-382.96434378,0.00026021,8]
[388839382,1759411848995,-382.96434378,0.00026021,8]
[388839383,1759411849005,-150.0,0.00026051,2]
[388839384,1759411849014,-442.43526047,0.00026066,2]
[388839385,1759411849024,-1031.5424077,0.00026091,2]
[388839386,1759411849033,-200.0,0.000261,7]
[388839387,1759411849042,-516.0,0.00026101,2]
[388839388,1759411849051,-264.64716863,0.00026115,16]
[388839389,1759411849060,-264.64716863,0.00026115,16]
[388839390,1759411849070,-666.66666667,0.00026115,16]
[388839391,1759411849079,-154.64417083,0.00026115,16]
[388839392,1759411849088,-154.64417083,0.00026115,16]
[388839393,1759411849097,-192.36626591,0.0002616,2]
[388839394,1759411849106,-382.96434378,0.00026175,10]
[388839395,1759411849115,-382.96434378,0.00026175,10]
[388839396,1759411849125,-382.96434378,0.00026175,10]
[388839397,1759411849134,-180.627606,0.00026187,2]
[388839398,1759411849145,-442.43526047,0.00026222,4]
[388839399,1759411849155,-442.43526047,0.00026222,4]
[388839400,1759411849164,-442.43526047,0.00026222,4]
[388839401,1759411849174,-720.0,0.00026241,30]
[388839402,1759411849183,-264.64716863,0.00026265,18]
[388839403,1759411849193,-666.66666667,0.00026266,18]
[388839404,1759411849202,-700.91856384,0.00026279,5]
[388839405,1759411849213,-700.91856384,0.00026279,5]
[388839406,1759411849222,-700.91856384,0.00026279,5]
[388839407,1759411849232,-10000.0,0.00026279,2]
[388839408,1759411849242,-666.66666667,0.00026316,2]
[388839409,1759411849251,-666.66666667,0.00026316,2]
[388839410,1759411849261,-666.66666667,0.00026316,2]
[388839411,1759411849270,-666.66666667,0.00026316,2]
[388839412,1759411849280,-516.0,0.00026375,2]
[388839413,1759411849290,-442.43526047,0.00026379,6]
[388839414,1759411849299,-442.43526047,0.00026379,6]
[388839415,1759411849309,-1090.9,0.000264,2]
[388839416,1759411849319,-1090.9,0.000264,2]
[388839417,1759411849328,-5302.02,0.000264,2]
[388839418,1759411849337,-150.0,0.00026407,2]
[388839419,1759411849346,-264.64716863,0.00026416,20]
[388839420,1759411849355,-1200.0,0.00026416,2]
[388839421,1759411849365,-250.0,0.00026421,2]
[388839422,1759411849374,-841.88726176,0.00026447,2]
[388839423,1759411849383,-174.34281185,0.00026454,14]
[388839424,1759411849393,-174.34281185,0.00026454,14]
[388839425,1759411849402,-186.02978791,0.00026458,7]
[388839426,1759411849411,-666.66666667,0.00026475,4]
[388839427,1759411849420,-666.66666667,0.00026475,4]
[388839428,1759411849429,-2000.0,0.00026516,2]
[388839429,1759411849439,-2000.0,0.00026516,2]
[388839430,1759411849448,-442.43526047,0.00026536,8]
[388839431,1759411849461,-442.43526047,0.00026536,8]
[388839432,1759411849470,-442.43526047,0.00026536,8]
[388839433,1759411849480,-442.43526047,0.00026536,8]
[388839434,1759411849489,-150.0,0.00026594,2]
[388839435,1759411849499,-293.43242757,0.000266,7]
[388839436,1759411849508,-160.0,0.000266,7]
[388839437,1759411849518,-234.00747223,0.000266,7]
[388839438,1759411849527,-4487.46,0.000266,2]
[388839439,1759411849538,-1152.0,0.00026603,2]
[388839440,1759411849548,-47889.75661456,0.00026624,5]
[388839441,1759411849558,-700.91856384,0.00026624,5]
[388839442,1759411849567,-700.91856384,0.00026624,5]
[388839443,1759411849577,-700.91856384,0.00026624,5]
[388839444,1759411849587,-666.66666667,0.00026633,6]
[388839445,1759411849596,-666.66666667,0.00026633,6]
[388839446,1759411849605,-666.66666667,0.00026633,6]
[388839447,1759411849615,-666.66666667,0.00026633,6]
[388839448,1759411849624,-516.0,0.00026649,2]
[388839449,1759411849633,-442.43526047,0.00026693,10]
[388839450,1759411849643,-442.43526047,0.00026693,10]
[388839451,1759411849652,-442.43526047,0.00026693,10]
[388839452,1759411849661,-174.34281185,0.00026761,18]
[388839453,1759411849670,-174.34281185,0.00026761,18]
[388839454,1759411849680,-150.0,0.00026763,2]
[388839455,1759411849689,-666.66666667,0.00026791,8]
[388839456,1759411849698,-666.66666667,0.00026791,8]
[388839457,1759411849708,-666.66666667,0.00026791,8]
[388839458,1759411849717,-666.66666667,0.00026791,8]
[388839459,1759411849726,-1500.0,0.00026849,2]
[388839460,1759411849736,-442.43526047,0.0002685,12]
[388839461,1759411849745,-186.02978791,0.00026896,13]
[388839462,1759411849754,-516.0,0.00026923,2]
[388839463,1759411849764,-666.66666667,0.0002695,10]
[388839464,1759411849773,-666.66666667,0.0002695,10]
[388839465,1759411849782,-666.66666667,0.0002695,10]
[388839466,1759411849791,-1500.0,0.00026964,2]
[388839467,1759411849801,-350.0,0.00026968,2]
[388839468,1759411849810,-700.91856384,0.00026969,6]
[388839469,1759411849820,-700.91856384,0.00026969,6]
[388839470,1759411849829,-700.91856384,0.00026969,6]
[388839471,1759411849838,-191.14450407,0.00027,7]
[388839472,1759411849848,-154.0,0.00027,2]
[388839473,1759411849857,-1467.56285785,0.00027,5]
[388839474,1759411849867,-2500.0,0.00027064,2]
[388839475,1759411849876,-2500.0,0.00027064,2]
[388839476,1759411849885,-150.0,0.00027094,2]
[388839477,1759411849895,-200.0,0.000271,7]
[388839478,1759411849906,-666.66666667,0.00027108,12]
[388839479,1759411849915,-666.66666667,0.00027108,12]
[388839480,1759411849925,-150.0,0.00027119,2]
[388839481,1759411849934,-1004.9307659,0.00027123,3]
[388839482,1759411849943,-154.64417083,0.0002717,30]
[388839483,1759411849954,-516.0,0.00027197,2]
[388839484,1759411849963,-666.66666667,0.00027266,14]
[388839485,1759411849973,-666.66666667,0.00027266,14]
[388839486,1759411849982,-156.274124,0.000273,14]
[388839487,1759411849992,-700.91856384,0.00027314,7]
[388839488,1759411850001,-700.91856384,0.00027314,7]
[388839489,1759411850010,-700.91856384,0.00027314,7]
[388839490,1759411850019,-186.02978791,0.00027335,18]
[388839491,1759411850029,-203.76652278,0.00027342,2]
[388839492,1759411850097,-198.09975236,0.0002739,2]
[388839493,1759411850106,-150.0,0.0002739,2]
[388839494,1759411850115,-161.92980678,0.0002739,7]
[388839495,1759411850124,-220.90520895,0.00027397,2]
[388839496,1759411850134,-151.0,0.00027397,7]
[388839497,1759411850143,-245.0,0.00027397,7]
[388839498,1759411850152,-500.0,0.00027397,5]
[388839499,1759411850162,-156.96242412,0.000274,4]
[388839500,1759411850172,-156.96,0.000274,4]
[388839501,1759411850181,-183.12282814,0.000274,4]
[388839502,1759411850191,-183.12282814,0.000274,4]
[388839503,1759411850199,-183.12282814,0.000274,4]
[388839504,1759411850209,-183.12,0.000274,4]
[388839505,1759411850218,-154.96156742,0.000274,4]
[388839506,1759411850227,-154.96156742,0.000274,4]
[388839507,1759411850237,-154.96156742,0.000274,4]
[388839508,1759411850248,-154.96,0.000274,4]
[388839509,1759411850260,-160.70088473,0.000274,4]
[388839510,1759411850275,-160.70088473,0.000274,4]
[388839511,1759411850286,-160.70088473,0.000274,4]
[388839512,1759411850296,-160.70088473,0.000274,4]
[388839513,1759411850305,-160.70088473,0.000274,4]
[388839514,1759411850314,-160.70088473,0.000274,4]
[388839515,1759411850323,-160.70088473,0.000274,4]
[388839516,1759411850333,-160.70088473,0.000274,4]
[388839517,1759411850342,-160.7,0.000274,4]
[388839518,1759411850351,-172.63,0.000274,2]
[388839519,1759411850360,-172.63,0.000274,2]
[388839520,1759411850370,-666.66666667,0.00027424,16]
[388839521,1759411850379,-666.66666667,0.00027424,16]
[388839522,1759411850388,-500.0,0.00027446,7]
[388839523,1759411850399,-516.0,0.00027471,2]
[388839524,1759411850408,-1000.0,0.00027473,5]
[388839525,1759411850418,-150.0,0.00027475,2]
[388839526,1759411850428,-45421.27755054,0.000275,2]
[388839527,1759411850438,-5302.02,0.000275,2]
[388839528,1759411850447,-151.0,0.000275,7]
[388839529,1759411850459,-4487.46,0.000275,2]
[388839530,1759411850468,-1800.0,0.00027512,5]
[388839531,1759411850478,-160.80357326,0.00027516,5]
[388839532,1759411850487,-666.66666667,0.00027583,18]
[388839533,1759411850498,-4487.47,0.000276,2]
[388839534,1759411850508,-3000.0,0.00027612,5]
[388839535,1759411850517,-3000.0,0.00027612,5]
[388839536,1759411850526,-700.91856384,0.00027659,8]
[388839537,1759411850538,-700.91856384,0.00027659,8]
[388839538,1759411850547,-700.91856384,0.00027659,8]
[388839539,1759411850556,-666.66666667,0.00027741,20]
[388839540,1759411850566,-666.66666667,0.00027741,20]
[388839541,1759411850575,-666.66666667,0.00027741,20]
[388839542,1759411850584,-516.0,0.00027745,2]
[388839543,1759411850593,-186.02978791,0.00027773,24]
[388839544,1759411850602,-186.02978791,0.00027773,24]
[388839545,1759411850611,-150.0,0.00027831,2]
[388839546,1759411850621,-7305.31300001,0.0002785,60]
[388839547,1759411850630,-1031.5424077,0.00027897,2]
[388839548,1759411850639,-1000.0,0.00027945,5]
[388839549,1759411850649,-306.50453868,0.00028,14]
[388839550,1759411850659,-232.057509,0.00028,7]
[388839551,1759411850668,-232.057509,0.00028,7]
[388839552,1759411850677,-232.057509,0.00028,7]
[388839553,1759411850686,-232.057509,0.00028,7]
[388839554,1759411850696,-1058.58,0.00028,2]
[388839555,1759411850705,-700.91856384,0.00028003,8]